bitfinex/quotes_ETHUSD_20250929
["timestamp","ask_amount","ask_price","bid_price","bid_amount"]
[1759134776025,2.66795022,4128.4,4127.9,15.1976]
[1759134776560,2.66795022,4128.4,4127.9,14.9535]
[1759134776747,2.42230639,4128.3,4127.9,14.9535]
[1759134776948,2.42230458,4128.3,4127.9,14.9535]
[1759134777255,3.0,4128.5,4127.9,14.5]
[1759134777475,2.42224679,4128.4,4128.0,0.6976]
[1759134777757,5.42231624,4128.3,4127.9,14.5]
[1759134777953,3.0,4128.3,4127.9,14.5]
[1759134778158,3.0,4128.3,4127.9,15.1976]
[1759134778451,3.0,4128.3,4127.9,14.9535]
[1759134778621,3.0,4128.3,4128.0,0.2441]
[1759134779554,3.0,4128.4,4128.0,15.1976]
[1759134779924,2.42226019,4128.4,4128.0,15.1976]
[1759134780456,6.21420694,4128.5,4128.0,14.5]
[1759134780671,3.792,4128.5,4128.1,0.6976]
[1759134780820,3.792,4128.5,4128.2,0.6976]
[1759134781480,6.21419107,4128.5,4128.2,0.6976]
[1759134781776,7.5177784,4128.5,4128.2,0.6976]
[1759134781953,2.42226282,4128.4,4128.2,0.6976]
[1759134782138,2.42226282,4128.4,4128.0,15.1976]
[1759134782343,2.42226282,4128.4,4128.1,0.6976]
[1759134782558,2.42226282,4128.4,4128.0,14.5]
[1759134782736,2.42226282,4128.4,4128.0,15.1976]
[1759134783777,1.39594022,4128.4,4127.8,0.002]
[1759134784078,3.0,4128.2,4127.8,3.047]
[1759134784262,3.0,4128.2,4127.8,0.002]
[1759134784574,3.0,4128.2,4127.9,0.6976]
[1759134785677,3.0,4128.2,4127.9,0.2441]
[1759134785872,3.0,4128.2,4127.8,0.002]
[1759134786079,3.0,4128.2,4127.8,0.6996]
[1759134787075,5.54329348,4128.6,4127.8,0.6996]
[1759134787076,0.001,4129.3,4127.9,3.76682539]
[1759134787283,2.42271851,4129.3,4128.0,0.7218248]
[1759134787482,3.044,4129.2,4128.4,2.42224534]
[1759134787779,3.001,4129.1,4128.5,0.6976]
[1759134788086,5.4228448,4129.1,4128.6,14.7441]
[1759134788386,5.4228448,4129.1,4128.6,15.1976]
[1759134788763,3.0,4128.9,4128.6,15.1976]
[1759134789062,5.42284889,4129.1,4128.6,15.1976]
[1759134789464,0.0002,4128.8,4128.6,15.1976]
[1759134790290,0.0002,4128.8,4128.6,17.6197193]
[1759134790650,0.0002,4128.8,4128.6,15.1976]
[1759134791088,0.0002,4128.8,4128.6,17.61971105]
[1759134791253,0.0002,4128.8,4128.7,0.2424]
[1759134792191,0.0002,4128.8,4128.7,0.7083]
[1759134793067,0.37935956,4129.0,4128.7,0.73252069]
[1759134793281,0.37935956,4129.0,4128.8,0.7112]
[1759134793451,0.001,4129.1,4129.0,2.42189392]
[1759134793855,0.001,4129.1,4129.0,3.13309392]
[1759134794701,0.001,4129.1,4129.0,15.23541893]
[1759134794854,0.001,4129.1,4129.0,15.2112]
[1759134795255,0.001,4129.1,4129.0,22.50261392]
[1759134795498,0.001,4129.1,4129.0,20.08072]
[1759134795699,0.001,4129.1,4129.0,22.50261392]
[1759134796269,0.001,4129.1,4129.0,19.45861392]
[1759134796611,5.42137653,4129.9,4129.0,19.45861392]
[1759134796612,0.001,4130.0,4129.9,2.42136613]
[1759134796789,0.37979532,4131.9,4130.1,2.42124888]
[1759134797105,0.37979532,4131.9,4130.8,2.42083857]
[1759134797309,0.37979532,4131.9,4130.8,20.00504695]
[1759134797511,0.37979532,4131.9,4130.8,20.69203857]
[1759134797660,0.37979532,4131.9,4130.8,23.00333215]
[1759134799665,3.25,4132.0,4130.8,23.00333215]
[1759134799990,0.25,4131.8,4130.8,23.00233215]
[1759134802998,0.001,4131.4,4130.8,23.00233215]
[1759134804677,0.001,4131.4,4130.8,23.00033215]
[1759134805400,0.001,4131.4,4130.8,19.23213215]
[1759134805699,0.25,4131.2,4130.8,19.97583857]
[1759134805864,0.001,4131.4,4130.8,16.92083857]
[1759134806063,0.25,4131.1,4130.8,19.97583857]
[1759134806297,0.001,4131.4,4130.8,19.97583857]
[1759134806508,0.251,4131.4,4130.8,19.97583857]
[1759134807011,0.251,4131.4,4130.8,20.21533857]
[1759134807170,0.001,4131.4,4130.8,17.555]
[1759134807363,0.25,4131.2,4130.8,16.92083857]
[1759134807563,0.25,4131.2,4130.8,19.97583857]
[1759134808379,0.001,4131.4,4130.8,19.97583857]
[1759134808594,0.251,4131.4,4130.8,20.68703857]
[1759134808808,0.251,4131.4,4130.8,22.99783691]
[1759134809008,0.001,4131.4,4130.8,22.99783691]
[1759134809499,4.781851,4131.3,4130.8,16.81079834]
[1759134809705,3.0,4130.8,4130.4,3.054]
[1759134809868,3.0,4130.8,4130.5,0.02421014]
[1759134810071,3.25,4130.8,4130.5,0.02421014]
[1759134810408,0.25,4130.8,4130.6,14.5]
[1759134810700,0.25,4130.8,4130.4,3.054]
[1759134810913,0.25,4130.8,4130.5,0.02421014]
[1759134812089,2.4217972,4130.9,4130.5,3.054]
[1759134812302,0.25,4130.7,4130.5,3.054]
[1759134812609,0.25,4130.7,4130.3,14.5]
[1759134812807,0.5706,4130.6,4130.4,3.053]
[1759134812974,0.25,4130.5,4130.4,3.053]
[1759134813997,0.25,4130.5,4130.3,14.5]
[1759134813998,0.25,4130.5,4130.3,17.552]
[1759134814573,2.42089903,4130.7,4130.3,17.552]
[1759134814785,0.25,4130.4,4130.3,17.552]
[1759134815206,0.25,4130.4,4130.3,14.5]
[1759134815390,0.25,4130.4,4130.3,17.552]
[1759134815791,3.25,4130.4,4130.3,14.5]
[1759134815996,5.42113643,4130.3,4129.6,2.42151057]
[1759134816309,0.25,4130.2,4129.7,3.051]
[1759134816473,2.67120203,4130.2,4129.8,14.5]
[1759134816673,2.42120203,4130.2,4129.8,17.552]
[1759134816873,2.67120203,4130.2,4129.8,17.552]
[1759134817274,0.25,4130.2,4129.8,17.552]
[1759134817473,2.67119776,4130.2,4129.8,17.552]
[1759134818115,2.67039776,4130.2,4129.8,17.552]
[1759134818733,4.780851,4130.2,4129.8,14.5]
[1759134818959,2.42135337,4130.0,4129.8,3.052]
[1759134819240,2.42117375,4130.3,4129.6,5.47253392]
[1759134819540,2.42117375,4130.3,4129.6,17.59673392]
[1759134819722,2.42117375,4130.3,4129.7,3.051]
[1759134820026,2.4212133,4130.2,4129.7,3.2764]
[1759134820210,2.4212133,4130.2,4129.8,0.6772]
[1759134820624,2.42114094,4130.3,4129.8,0.6772]
[1759134821014,2.42119062,4130.2,4129.8,0.6772]
[1759134821214,2.65049062,4130.2,4129.8,0.002]
[1759134822475,0.2293,4130.2,4129.8,0.002]
[1759134822733,2.650505,4130.2,4129.8,0.002]
[1759134823108,2.421205,4130.2,4129.8,0.6772]
[1759134823509,2.4212512,4130.1,4129.8,0.002]
[1759134823829,0.2293,4130.1,4129.8,0.002]
[1759134824329,5.42116961,4130.3,4129.8,0.002]
[1759134824523,5.65046961,4130.3,4129.8,0.002]
[1759134824828,0.2293,4130.2,4129.8,0.002]
[1759134825434,5.4211429,4130.3,4129.8,0.6772]
[1759134825833,5.6504429,4130.3,4129.8,0.6772]
[1759134826034,3.0,4130.5,4129.9,3.74841366]
[1759134826246,0.37982022,4130.6,4130.1,2.42124232]
[1759134826455,0.37982022,4130.6,4130.2,2.44539025]
[1759134826751,0.37982022,4130.6,4129.8,2.06938864]
[1759134826915,0.2293,4130.5,4129.9,3.048]
[1759134827122,0.2293,4130.5,4130.0,3.048]
[1759134827318,0.2293,4130.5,4130.0,5.69470729]
[1759134827560,2.80079551,4130.6,4130.0,3.2734]
[1759134827736,5.65041637,4130.4,4129.8,0.002]
[1759134827924,5.65041637,4130.4,4130.0,3.048]
[1759134828127,5.42111637,4130.4,4130.0,3.048]
[1759134828340,0.2293,4130.3,4130.0,3.048]
[1759134828736,4.0213,4130.5,4130.0,3.048]
[1759134828924,3.44231692,4130.5,4130.0,3.048]
[1759134829126,2.42107301,4130.4,4130.0,3.048]
[1759134829452,0.2293,4130.4,4130.0,3.048]
[1759134830753,2.65039133,4130.4,4130.0,3.048]
[1759134831254,0.2293,4130.4,4130.0,3.048]
[1759134832239,2.65037987,4130.4,4130.0,3.048]
[1759134832566,2.65037987,4130.4,4129.8,3.09862299]
[1759134832766,2.65037987,4130.4,4129.9,3.047]
[1759134833266,2.65037987,4130.4,4129.9,3.7222]
[1759134833793,2.65037987,4130.4,4130.0,0.2254]
[1759134836362,2.65037655,4130.4,4130.0,0.2254]
[1759134836659,2.65037655,4130.4,4129.9,3.047]
[1759134836861,2.42107655,4130.4,4129.9,3.2724]
[1759134837065,0.2293,4130.3,4129.9,3.047]
[1759134837430,5.010151,4130.2,4129.8,0.002]
[1759134837632,7.780851,4129.9,4129.8,0.002]
[1759134837851,3.0,4129.9,4129.8,0.002]
[1759134843177,2.9992,4129.9,4129.8,0.002]
[1759134846089,2.9992,4129.9,4129.8,2.42342476]
[1759134846249,2.9992,4129.9,4129.8,4.03368408]
[1759134846451,2.9992,4129.9,4129.8,6.47932308]
[1759134846682,2.9992,4129.9,4129.8,6.45510884]
[1759134849278,0.001,4130.4,4129.9,2.42136613]
[1759134849483,0.001,4130.4,4130.3,2.42113163]
[1759134849782,0.001,4130.4,4130.3,5.9760023]
[1759134849958,0.001,4130.4,4130.3,6.63039099]
[1759134850786,0.001,4130.4,4130.3,3.35319099]
[1759134850981,0.001,4130.4,4130.3,3.53065936]
[1759134851178,0.001,4130.4,4130.3,5.95179099]
[1759134851356,0.001,4130.4,4130.3,6.63039099]
[1759134851557,0.001,4130.4,4130.3,3.58639099]
[1759134851769,0.001,4130.4,4130.3,6.63039099]
[1759134851970,3.001,4130.4,4129.8,0.99308408]
[1759134852188,3.001,4130.4,4130.0,2.42128317]
[1759134852394,0.2458,4130.3,4130.0,2.42128317]
[1759134852688,0.2458,4130.3,4129.9,3.044]
[1759134852860,0.001,4130.4,4130.2,2.42119025]
[1759134853061,0.001,4130.4,4130.3,2.44534294]
[1759134853298,0.001,4130.4,4130.3,0.02421131]
[1759134853481,0.001,4130.4,4130.2,5.46516886]
[1759134854481,0.001,4130.4,4130.3,2.42113163]
[1759134854793,0.001,4130.4,4130.3,3.14314294]
[1759134855286,0.001,4130.4,4130.2,3.044]
[1759134855485,0.001,4130.4,4130.2,3.5146]
[1759134855486,0.001,4130.3,4130.2,3.5146]
[1759134855692,0.001,4130.3,4130.2,6.16299025]
[1759134856053,0.001,4130.3,4130.2,5.93579025]
[1759134856464,0.001,4130.3,4130.2,6.16299025]
[1759134858760,0.001,4130.3,4130.2,5.46519025]
[1759134858961,0.001,4130.3,4130.2,3.044]
[1759134859216,0.001,4130.3,4130.2,3.0682119]
[1759134859396,0.001,4130.3,4130.2,3.044]
[1759134860010,0.001,4130.3,4130.2,5.46519025]
[1759134860500,0.001,4130.3,4130.2,5.69239025]
[1759134860708,0.001,4130.3,4130.2,6.16299025]
[1759134861284,0.001,4130.3,4130.2,6.72717123]
[1759134863407,0.001,4130.3,4130.2,6.16299025]
[1759134865020,0.001,4130.3,4130.2,5.69239025]
[1759134865233,0.001,4130.3,4130.2,3.044]
[1759134865431,0.001,4130.3,4130.2,3.0682119]
[1759134865736,0.001,4130.3,4130.2,5.48840215]
[1759134865903,0.001,4130.3,4130.2,2.42119025]
[1759134866297,0.001,4130.3,4130.2,5.46419025]
[1759134866512,0.001,4130.3,4130.2,2.42119025]
[1759134866813,0.001,4130.3,4130.2,5.46419025]
[1759134868103,0.0002,4130.3,4130.2,5.46419025]
[1759134868301,3.0002,4130.3,4129.8,0.002]
[1759134868505,0.2426,4130.2,4130.0,2.42129734]
[1759134868712,0.0002,4130.3,4130.2,14.5]
[1759134870594,0.0002,4130.3,4130.2,16.92119025]
[1759134870994,0.0002,4130.3,4130.2,14.5]
[1759134871209,0.0002,4130.3,4130.2,16.92119025]
[1759134872647,0.0002,4130.3,4130.2,14.5]
[1759134873349,0.0002,4130.3,4130.2,16.92119025]
[1759134873519,0.0002,4130.3,4130.2,14.5]
[1759134874041,0.0002,4130.3,4130.2,16.92119025]
[1759134881937,0.0002,4130.3,4130.2,17.15249025]
[1759134882950,0.0002,4130.3,4130.2,16.92119025]
[1759134883128,0.0002,4130.3,4130.2,19.83493853]
[1759134887344,0.0002,4130.3,4130.2,19.95573853]
[1759134893953,0.0004,4130.4,4130.3,2.42113163]
[1759134894151,0.0004,4130.4,4130.3,6.16254294]
[1759134894364,0.0004,4130.4,4130.3,6.13833163]
[1759134894586,0.0004,4130.4,4130.3,22.49262362]
[1759134897252,0.001,4131.3,4130.3,21.51149199]
[1759134897456,0.001,4131.3,4131.2,2.54140418]
[1759134897776,0.001,4131.3,4131.2,5.58740418]
[1759134897956,0.001,4131.3,4131.2,20.08740418]
[1759134898151,0.001,4131.3,4131.2,22.4785308]
[1759134898363,0.001,4131.3,4131.2,23.4743308]
[1759134901181,0.001,4131.3,4131.2,23.9559766]
[1759134903210,0.001,4131.3,4131.2,23.9609766]
[1759134903497,0.001,4131.3,4131.2,20.9099766]
[1759134903692,0.001,4131.3,4131.2,23.9599766]
[1759134905608,0.001,4131.3,4131.2,24.7519766]
[1759134907209,0.003,4133.1,4133.0,2.41954996]
[1759134907517,0.4260676,4135.7,4134.3,2.41878915]
[1759134907518,0.3236,4134.4,4134.3,2.41878915]
[1759134907802,0.3206,4134.4,4134.3,19.99597704]
[1759134907979,0.3206,4134.4,4134.3,19.97178915]
[1759134908173,0.3206,4134.7,4134.3,19.97176614]
[1759134908497,0.3206,4134.6,4134.5,2.41865593]
[1759134908701,5.53599662,4135.3,4134.5,2.41865593]
[1759134908702,2.41743094,4136.7,4135.6,2.41798274]
[1759134909000,2.66664963,4138.0,4135.8,2.41791189]
[1759134909001,0.3206,4136.6,4135.8,2.41791189]
[1759134909298,0.3206,4136.5,4135.9,17.561]
[1759134909500,0.3206,4136.4,4136.0,3.064]
[1759134909799,5.53599662,4136.8,4136.0,3.064]
[1759134909800,0.3206,4136.3,4136.0,3.064]
[1759134909970,5.53599662,4136.8,4136.0,3.064]
[1759134910167,0.83587489,4137.1,4136.0,3.064]
[1759134910168,0.72717489,4137.1,4136.7,14.5]
[1759134910388,2.4172913,4136.9,4136.8,3.073]
[1759134910695,2.4172913,4136.9,4136.7,14.5]
[1759134910696,5.4173274,4136.8,4136.7,14.5]
[1759134910999,6.87395893,4136.8,4136.7,17.582]
[1759134911203,6.87395893,4136.8,4135.1,0.4323]
[1759134911204,2.41738583,4136.7,4135.1,0.4323]
[1759134911376,5.64469662,4136.8,4135.8,2.53866054]
[1759134911582,3.0,4136.7,4135.9,15.097]
[1759134911797,3.0,4136.7,4136.0,3.084]
[1759134911998,0.37923305,4136.9,4136.1,0.02417736]
[1759134911999,0.90239297,4136.6,4136.1,0.02417736]
[1759134912294,0.90239297,4136.6,4135.8,0.1208]
[1759134912295,5.53599662,4136.6,4136.2,3.084]
[1759134912485,3.2281,4136.5,4136.3,17.583]
[1759134912683,3.1087,4136.5,4136.3,17.583]
[1759134912887,0.1194,4136.4,4136.3,14.5]
[1759134913092,0.1194,4136.4,4136.3,17.583]
[1759134913288,1.23755552,4136.4,4136.3,17.583]
[1759134914597,3.65511668,4136.4,4136.3,14.5]
[1759134914903,1.23755552,4136.4,4136.3,17.581]
[1759134916004,5.41767285,4136.3,4135.2,2.41824713]
[1759134916187,3.0,4136.1,4135.4,0.1208]
[1759134916390,3.0,4136.1,4135.5,3.08]
[1759134916591,0.96552284,4136.2,4135.9,14.5]
[1759134916802,3.1706,4136.5,4136.0,3.10417794]
[1759134917002,0.72719427,4136.8,4136.0,3.10417794]
[1759134917207,0.72719427,4136.8,4136.1,2.4177096]
[1759134917421,0.72719427,4136.8,4136.2,3.10417678]
[1759134917589,0.99217239,4136.7,4136.2,3.10417678]
[1759134917988,0.99137239,4136.7,4136.2,3.10417678]
[1759134918490,3.54983305,4136.9,4136.2,3.10417678]
[1759134918679,5.96712034,4136.9,4136.2,3.10417678]
[1759134919006,3.54983305,4136.9,4136.2,5.49767741]
[1759134919207,3.54983305,4136.9,4136.2,3.08]
[1759134919414,3.37923305,4136.9,4136.2,5.52184868]
[1759134919570,4.58519335,4136.9,4136.2,3.08]
[1759134919773,7.00246496,4136.9,4136.2,3.08]
[1759134920128,7.00246496,4136.9,4136.2,3.10417678]
[1759134920129,4.58519335,4136.9,4136.2,3.10417678]
[1759134920323,3.0,4136.5,4136.3,14.5]
[1759134920608,4.75579335,4136.9,4136.4,3.078]
[1759134920812,3.0,4136.6,4136.5,0.02417502]
[1759134921018,3.0,4136.6,4136.5,3.078]
[1759134921311,3.0,4136.6,4136.5,14.5]
[1759134921686,3.0,4136.6,4136.5,17.577]
[1759134922777,3.1706,4136.6,4136.5,17.577]
[1759134923005,6.49119297,4136.6,4136.5,14.5]
[1759134923216,6.77049297,4136.6,4136.5,14.5]
[1759134923400,7.49773837,4136.6,4136.5,14.5]
[1759134923599,2.41761961,4136.3,4136.2,3.079]
[1759134923929,2.41761961,4136.3,4135.3,0.5852]
[1759134923930,2.41784311,4136.0,4135.2,2.41824092]
[1759134924209,0.1706,4136.1,4135.5,16.91807955]
[1759134924376,3.0,4135.9,4135.6,3.078]
[1759134924581,3.0,4135.9,4135.7,0.0241797]
[1759134924809,3.0,4135.9,4135.8,3.078]
[1759134926015,3.0,4135.9,4135.5,14.5]
[1759134926317,3.0,4135.6,4135.5,14.5]
[1759134926519,3.0,4135.6,4135.5,19.99508729]
[1759134926895,3.0,4135.6,4135.5,14.5]
[1759134927099,3.0,4135.6,4135.5,17.576]
[1759134927320,3.0,4135.6,4135.5,19.99408729]
[1759134927890,3.0,4135.6,4135.5,17.576]
[1759134928096,3.0,4136.4,4135.5,18.0404]
[1759134928406,7.77025943,4136.4,4136.0,2.41779176]
[1759134928608,3.0,4136.4,4136.1,3.10017736]
[1759134928796,3.0,4136.2,4136.1,3.10017736]
[1759134929926,3.0,4136.2,4136.1,5.51791387]
[1759134930229,3.0,4136.2,4136.1,5.49373651]
[1759134930531,3.0,4136.2,4136.1,5.95813651]
[1759134931292,3.0,4136.2,4135.7,0.5852]
[1759134931518,3.0,4136.2,4136.0,2.41778455]
[1759134931718,3.0,4136.2,4136.1,17.575]
[1759134932430,4.77025943,4136.2,4136.1,17.575]
[1759134932838,4.77025943,4136.2,4136.1,17.574]
[1759134933016,7.77025943,4136.2,4136.1,17.574]
[1759134934140,3.0,4136.2,4136.1,17.574]
[1759134934530,7.77025943,4136.2,4136.1,17.574]
[1759134934948,3.0,4136.2,4136.1,19.99173651]
[1759134935114,3.0,4136.2,4136.1,18.0384]
[1759134935319,3.0,4136.2,4136.1,17.574]
[1759134935520,7.77025943,4136.2,4136.1,17.574]
[1759134935750,7.77025943,4136.2,4136.1,17.572]
[1759134936824,7.77025943,4136.2,4136.1,19.98973651]
[1759134937259,7.77025943,4136.2,4136.1,17.572]
[1759134939423,7.77025943,4136.2,4136.1,14.5]
[1759134939623,11.13556343,4136.2,4136.1,14.5]
[1759134939851,11.13556343,4136.2,4135.8,3.071]
[1759134939852,9.44519601,4136.2,4135.8,3.071]
[1759134940045,7.77025943,4135.9,4135.8,3.071]
[1759134940244,3.0,4135.9,4135.8,5.48891189]
[1759134940448,4.77025943,4136.5,4136.2,2.41766746]
[1759134940636,4.77025943,4136.5,4136.3,3.56847619]
[1759134940820,7.77025943,4136.5,4136.4,0.4723]
[1759134941226,7.77025943,4136.5,4136.3,3.072]
[1759134941536,7.77025943,4136.5,4136.3,3.56847619]
[1759134941731,7.77025943,4136.5,4136.3,3.5443]
[1759134943157,4.77025943,4136.4,4136.3,3.5443]
[1759134943532,4.77025943,4136.4,4136.3,3.56847619]
[1759134943732,4.77025943,4136.4,4136.3,5.9860958]
[1759134943932,4.77025943,4136.4,4136.3,18.0443]
[1759134944132,4.77025943,4136.4,4136.3,17.572]
[1759134944655,4.77025943,4136.4,4136.3,3.072]
[1759134945539,3.0,4136.3,4136.1,14.502]
[1759134945742,3.0,4136.3,4136.2,3.07]
[1759134945975,3.0,4136.3,4136.1,14.502]
[1759134946691,5.41762267,4136.3,4136.1,14.502]
[1759134946990,5.58822267,4136.3,4136.1,14.502]
[1759134947161,3.1706,4136.3,4136.1,14.502]
[1759134947358,3.0,4136.3,4136.1,14.502]
[1759134947559,7.21053788,4136.3,4136.1,14.502]
[1759134947959,7.03993788,4136.3,4136.1,14.502]
[1759134948800,7.0399548,4136.3,4136.1,14.502]
[1759134948968,7.0399548,4136.3,4136.1,0.002]
[1759134949585,4.62231564,4136.3,4136.1,0.002]
[1759134950082,3.0,4136.3,4136.1,0.002]
[1759134951401,7.77025943,4136.2,4136.1,0.002]
[1759134958667,10.18793749,4136.2,4136.1,0.002]
[1759134958999,10.35853749,4136.2,4136.1,0.002]
[1759134959798,14.32123749,4136.2,4136.1,0.002]
[1759134959981,16.03304434,4136.2,4136.1,0.002]
[1759134960176,15.92434434,4136.2,4136.1,0.002]
[1759134960605,15.75374434,4136.2,4136.1,0.002]
[1759134961608,15.92434434,4136.2,4136.1,0.002]
[1759134962400,12.86234434,4136.2,4136.1,0.002]
[1759134962710,12.69174434,4136.2,4136.1,0.002]
[1759134963205,10.27406628,4136.2,4136.1,0.002]
[1759134963503,12.69174434,4136.2,4136.1,0.002]
[1759134967912,12.69094434,4136.2,4136.1,0.002]
[1759134971408,14.14794434,4136.2,4136.1,0.002]
[1759134971611,12.69094434,4136.2,4136.1,0.002]
[1759134972240,2.9992,4136.2,4136.1,0.002]
[1759134972396,7.76945943,4136.2,4136.1,0.6792]
[1759134975128,7.76945943,4136.2,4136.1,0.4357]
[1759134976949,7.76945943,4136.2,4136.1,0.002]
[1759134977540,10.18713749,4136.2,4136.1,0.002]
[1759134977851,7.76945943,4136.2,4136.1,0.002]
[1759134978059,2.9992,4136.2,4136.1,0.002]
[1759134978216,7.76945943,4136.2,4136.1,0.002]
[1759134979030,10.18713749,4136.2,4136.1,0.002]
[1759134980446,10.98013749,4136.2,4136.1,0.002]
[1759134980763,15.67830914,4136.2,4136.1,0.002]
[1759134981947,3.0002,4136.2,4136.1,0.6838]
[1759134984225,3.0002,4136.2,4136.1,0.4487]
[1759134990959,3.0002,4136.2,4136.1,0.002]
[1759134991520,5.41787806,4136.2,4136.1,0.002]
[1759134991763,7.09654144,4136.2,4136.1,0.002]
[1759134992869,7.09574144,4136.2,4136.1,0.002]
[1759134993660,10.14674144,4136.2,4136.1,0.002]
[1759134995757,10.93874144,4136.2,4136.1,0.002]
[1759134996452,10.14674144,4136.2,4136.1,0.002]
[1759134996649,8.46807806,4136.2,4136.1,0.002]
[1759135000283,5.41707806,4136.2,4136.1,0.002]
[1759135000458,8.46507806,4136.2,4136.1,0.002]
[1759135001180,9.25707806,4136.2,4136.1,0.002]
[1759135001464,9.42767806,4136.2,4136.1,0.002]
[1759135001666,11.32179144,4136.2,4136.1,0.002]
[1759135002172,6.20997035,4135.7,4135.6,0.002]
[1759135002373,14.77789824,4135.7,4135.6,0.002]
[1759135004380,14.77789824,4135.7,4135.3,0.002]
[1759135004381,3.792,4135.6,4135.3,0.002]
[1759135004564,6.21020424,4135.3,4135.2,0.002]
[1759135004770,14.77913213,4135.3,4135.2,0.002]
[1759135005165,15.15850856,4135.3,4135.2,0.002]
[1759135005475,15.64621751,4135.3,4135.2,0.002]
[1759135005637,15.75491751,4135.3,4135.2,0.002]
[1759135006892,3.21043817,4134.9,4134.4,0.4697]
[1759135007074,14.77836606,4134.9,4134.4,0.4697]
[1759135007275,14.77836606,4134.9,4134.4,0.002]
[1759135007798,15.50602599,4134.9,4134.4,0.002]
[1759135007970,17.29143937,4134.9,4134.4,0.002]
[1759135008176,2.41867214,4134.5,4134.4,0.002]
[1759135008377,14.77860003,4134.5,4134.4,0.002]
[1759135008798,15.158045,4134.5,4134.4,0.002]
[1759135008995,16.87762451,4134.5,4134.4,0.002]
[1759135009290,16.99878772,4134.5,4134.4,0.002]
[1759135009992,16.61934275,4134.5,4134.4,0.002]
[1759135012014,16.61934275,4134.5,4133.2,14.5]
[1759135012015,2.41922172,4133.6,4133.5,0.2427]
[1759135012219,2.41937434,4133.3,4133.2,14.5]
[1759135012512,2.41937434,4133.3,4133.2,14.7427]
[1759135012680,2.41937434,4133.3,4133.2,15.2104]
[1759135013116,5.41933491,4133.4,4133.2,15.2104]
[1759135013416,2.41945402,4133.2,4132.5,2.41983915]
[1759135013627,3.0,4133.1,4132.4,2.41989135]
[1759135013815,3.0,4133.1,4132.7,14.5]
[1759135014117,3.0,4133.1,4132.8,0.7104]
[1759135014276,3.0,4133.1,4132.7,14.5]
[1759135014477,3.0,4133.1,4132.9,0.7104]
[1759135014686,3.0,4133.1,4133.0,0.7104]
[1759135014981,5.41949142,4133.1,4133.0,0.7104]
[1759135015184,3.0,4133.1,4133.0,0.7104]
[1759135018014,2.9992,4133.1,4133.0,15.2104]
[1759135022579,5.41869142,4133.1,4133.0,14.9677]
[1759135022801,2.9992,4133.1,4133.0,14.9677]
[1759135023001,5.41869142,4133.1,4133.0,14.9677]
[1759135023210,5.41869142,4133.1,4133.0,14.5]
[1759135023414,2.4195561,4133.0,4132.8,0.002]
[1759135023627,2.41954996,4133.0,4132.8,0.002]
[1759135023795,4.85017815,4133.1,4132.8,0.002]
[1759135023997,2.4196085,4132.9,4132.8,0.002]
[1759135024199,2.8893085,4132.9,4132.8,0.002]
[1759135027117,6.99527665,4132.9,4132.8,0.002]
[1759135029686,10.04227665,4132.9,4132.8,0.002]
[1759135029931,10.21287665,4132.9,4132.8,0.002]
[1759135030300,10.32157665,4132.9,4132.8,0.002]
[1759135030892,11.77857665,4132.9,4132.8,0.002]
[1759135031092,3.21190126,4132.4,4132.3,0.002]
[1759135031322,12.29600197,4132.4,4132.3,0.002]
[1759135031708,12.75680197,4132.4,4132.3,0.002]
[1759135032398,11.73306341,4132.0,4131.3,0.4608]
[1759135032595,14.78006341,4132.0,4131.6,0.4608]
[1759135032916,16.25357905,4132.0,4131.6,0.4608]
[1759135033820,16.71437905,4132.0,4131.6,0.4608]
[1759135034524,17.09403361,4132.0,4131.6,0.4608]
[1759135035531,17.09403361,4132.0,4131.3,0.227]
[1759135035532,3.84045456,4132.0,4131.9,0.6826]
[1759135036035,6.26059008,4132.0,4131.9,0.6826]
[1759135036234,7.05259008,4132.0,4131.9,0.002]
[1759135036736,10.10059008,4132.0,4131.9,0.002]
[1759135037233,3.84045456,4132.0,4131.9,0.6826]
[1759135037437,10.10059008,4132.0,4131.9,0.002]
[1759135037626,11.03672833,4132.0,4131.9,0.002]
[1759135037800,3.84045456,4132.0,4131.9,0.6826]
[1759135038001,6.88845456,4132.0,4131.9,0.6826]
[1759135038229,9.30859008,4132.0,4131.9,0.6826]
[1759135038736,10.10059008,4132.0,4131.9,0.002]
[1759135042206,14.88305105,4132.0,4131.9,0.002]
[1759135042406,16.75905911,4132.0,4131.9,0.002]
[1759135042819,16.75825911,4132.0,4131.9,0.002]
[1759135045333,11.29012359,4132.0,4131.9,0.002]
[1759135045535,14.88225105,4132.0,4131.9,0.6826]
[1759135046347,11.83425105,4132.0,4131.9,0.6826]
[1759135046548,14.88225105,4132.0,4131.9,0.6826]
[1759135047438,14.88225105,4132.0,4131.9,0.4537]
[1759135048646,14.88225105,4132.0,4131.9,0.002]
[1759135048816,16.7581794,4132.0,4131.9,0.002]
[1759135053630,16.7581794,4132.0,4131.9,0.4537]
[1759135053832,16.7581794,4132.0,4131.9,0.002]
[1759135054461,16.7591794,4132.0,4131.9,0.002]
[1759135067760,14.88245105,4132.0,4131.9,0.002]
[1759135071573,16.33945105,4132.0,4131.9,0.002]
[1759135078485,16.33945105,4132.0,4131.8,0.002]
[1759135078486,16.33945105,4132.0,4131.8,1e-08]
[1759135078671,6.21266277,4131.1,4131.0,0.002]
[1759135078873,10.12298798,4131.1,4131.0,0.002]
[1759135079267,10.12298798,4131.1,4131.0,0.4725]